Workbook

Sheet INPUT
B5: BASISGEGEVENS
B6: DOSSIER
B7: Naam dossierbeheerder | F7: =IF(D7="",3,IF(D7="antwoord onbekend",2,1)) -> 3
B8: Namen betrokken personen | F8: =IF(D8="",3,IF(D8="antwoord onbekend",2,1)) -> 3
B9: Datum opstart dossier | F9: 3
B10: LOCATIE
B11: Naam | F11: =IF(D11="",3,IF(D11="antwoord onbekend",2,1)) -> 3
B12: Adres | F12: =IF(D12="",3,IF(D12="antwoord onbekend",2,1)) -> 3
B13: Huidige eigenaar | F13: 3
B15: RUIMTELIJK KENMERKEN
B16: Zijn er kwetsbare functies binnen een straal van 200 meter rond de site? | C16: belangrijk | D16: kies | F16: =IF(D16="kies",3,IF(D16="antwoord onbekend",2,1)) -> 3
B17: Welke stedenbouwkundige bestemming heeft de site? | C17: belangrijk | D17: kies | F17: =IF(D17="kies",3,IF(D17="antwoord onbekend",2,1)) -> 3
B18: Ligt de site in een omgeving met een hoge of lage ruimtelijke dynamiek? | C18: belangrijk | D18: kies | F18: 3
B19: In welk type buurt ligt de site? | C19: belangrijk | D19: kies | F19: 3
B20: Hoe groot is de site? | C20: belangrijk | D20: kies | F20: 3
B21: Wat is de actuele graad van bebouwde oppervlakte op de site? | D21: kies | F21: 3
B22: Is er onroerend erfgoed op de site aanwezig? | D22: kies | F22: 3
B23: In welke staat is de site vandaag? | D23: kies | F23: 3
B24: Is er op de site voldoende ruimte om te bufferen? | C24: belangrijk | D24: kies | F24: 3
B25: In welke mate kan de bestaande toestand behouden worden? | C25: belangrijk | D25: kies | F25: 3
B26: Is de site zo georganiseerd dat er draagvlak kan zijn voor opslag in open lucht? | C26: belangrijk | D26: kies | F26: 3
B27: Kan het aanwezige erfgoed op de site behouden worden om nieuwe activiteiten mogelijk te maken? | C27: belangrijk | D27: kies | F27: 3
B28: Is er in de omgeving van de site een grote druk vanuit andere functies dan bedrijvigheid? | C28: belangrijk | D28: Vanuit de omgeving is er een grote druk door andere functies dan bedrijvigheid | F28: 1
B30: SOCIALE KENMERKEN
B31: Zijn er in de buurt al bedrijven actief met eenzelfde schaal als de site? | C31: belangrijk | D31: kies | F31: =IF(D31="kies",3,IF(D31="antwoord onbekend",2,1)) -> 3
B32: Zijn er vanuit de buurt in het verleden reeds klachten gekomen rond bedrijvigheid? | C32: belangrijk | D32: kies | F32: 3
B33: Is er in de buurt van de site nood aan bijkomende ruimte (vb. voor parkeren, spelen, …)? | C33: belangrijk | D33: kies | F33: 3
B35: ECONOMISCHE KENMERKEN
B36: Is het aantal ambachtelijke bedrijven en kmo's in de kern de afgelopen jaren afgenomen? | C36: belangrijk | D36: kies | F36: =IF(D36="kies",3,IF(D36="antwoord onbekend",2,1)) -> 3
B37: Is het aantal commerciële diensten en voorzieningen in de kern de afgelopen jaren afgenomen? | C37: belangrijk | D37: kies | F37: 3
B38: Is er in de gemeente nood aan bijkomende ruimte voor ambachtelijke bedrijven of kmo's? | C38: belangrijk | D38: kies | F38: 3
B39: Zijn er in de buurt tekenen van verpaupering en stijgende werkloosheid? | C39: belangrijk | D39: In de buurt is er al een sterke verpaupering en een bovengemiddelde werkloosheid aanwezig | F39: 1
B41: KENMERKEN LEEFMILIEU
B42: Het groot mag de hindercontour zijn voor wat betreft stof | C42: belangrijk | D42: kies | F42: =IF(D42="kies",3,IF(D42="antwoord onbekend",2,1)) -> 3
B43: Het groot mag de hindercontour zijn voor wat betreft geur? | C43: belangrijk | D43: kies | F43: 3
B44: Het groot mag de hindercontour zijn voor wat betreft lichtvervuiling? | C44: belangrijk | D44: kies | F44: 3
B45: Het groot mag de hindercontour zijn voor wat betreft geluid? | C45: belangrijk | D45: kies | F45: 3
B46: Het groot mag de hindercontour zijn voor wat betreft trillingen? | C46: belangrijk | D46: kies | F46: 3
B48: MOBILITEITSKENMERKEN
B49: Ligt de site op wandelafstand van openbaar vervoer? | C49: belangrijk | D49: op wandelafstand van een bushalte en een station | F49: 1
B50: Hoe ver ligt de site van het hogere wegennet? | C50: belangrijk | D50: kies | F50: 3
B51: Wat is de kwaliteit van het ontsluitingstraject? | C51: belangrijk | D51: kies | F51: 3
B52: Hoeveel vrachtbewegingen zijn er voor de buurt haalbaar, binnen de courante werkuren? | C52: belangrijk | D52: kies | F52: 3
B53: Hoeveel vrachtbewegingen zijn er voor de buurt haalbaar, 's morgens en 's avonds (samengeteld)? | C53: belangrijk | D53: kies | F53: 3
B54: Hoeveel vrachtbewegingen zijn er voor de buurt haalbaar, 's nachts? | C54: belangrijk | D54: kies | F54: 3
B55: Is er op de site plaats (of kan er plaats gemaakt worden) om te laden en te lossen? | C55: belangrijk | D55: kies | F55: 3
B56: Is er op de site plaats (of kan er plaats gemaakt worden) om te parkeren? | C56: belangrijk | D56: kies | F56: 3

Sheet LISTS (hidden)
A1: R01 - kwestsbare functies
A2: kies | C2: 0
A3: neen, er zijn geen kwestbare functies | C3: 0 | E3: In een straal van 200 meter rond de site zijn er geen kwetsbare functies
A4: ja, er zijn kwetsbare functies | C4: 5 | E4: In een straal van 200 meter zijn er kwetsbare functies
A5: het is niet bekend of er in een straal van 200 meter kwetsbare functies zijn | C5: x | E5: Het is niet bekend of er in een straal van 200 meter kwetsbare functies zijn
A6: R02 - bestemming
A7: kies | C7: 0
A8: industriegebied (paars) | C8: 0 | E8: De site heeft als stedenbouwkundige bestemming "industriegebied"
A9: woongebied (rood) | C9: 5 | E9: De site heeft als stedenbouwkundige bestemming "woongebied"
A10: andere | C10: 5 | E10: De site heeft een andere stedenbouwkundige bestemming dan "industriegebied" of "woongebied"
A11: R03 - dynamiek
A12: kies | C12: 0
A13: lage ruimtelijke dynamiek | C13: 5 | E13: =CONCATENATE("De site ligt in een omgeving met"," ",_R03[[#This Row],[R03 - dynamiek]]) -> De site ligt in een omgeving met lage ruimtelijke dynamiek
A14: gemiddelde ruimtelijke dynamiek | C14: 2.5 | E14: =CONCATENATE("De site ligt in een omgeving met"," ",_R03[[#This Row],[R03 - dynamiek]]) -> De site ligt in een omgeving met gemiddelde ruimtelijke dynamiek
A15: hoge ruimtelijke dynamiek | C15: 0 | E15: =CONCATENATE("De site ligt in een omgeving met"," ",_R03[[#This Row],[R03 - dynamiek]]) -> De site ligt in een omgeving met hoge ruimtelijke dynamiek
A16: R04 - type buurt
A17: kies | C17: 0
A18: het gemengd weefsel langs invalsweg | C18: 0 | E18: =CONCATENATE("De site ligt in"," ",_R04[[#This Row],[R04 - type buurt]]) -> De site ligt in het gemengd weefsel langs invalsweg
A19: de 19de eeuwse rand | C19: 2.5 | E19: =CONCATENATE("De site ligt in"," ",_R04[[#This Row],[R04 - type buurt]]) -> De site ligt in de 19de eeuwse rand
A20: de groene / residentiële rand | C20: 2.5 | E20: =CONCATENATE("De site ligt in"," ",_R04[[#This Row],[R04 - type buurt]]) -> De site ligt in de groene / residentiële rand
A21: het historisch centrum | C21: 5 | E21: =CONCATENATE("De site ligt in"," ",_R04[[#This Row],[R04 - type buurt]]) -> De site ligt in het historisch centrum
A22: R05 - oppervlakte
A23: kies | C23: 0
A24: < 250 m² | C24: 0 | E24: De site is kleiner dan 250 m²
A25: < 500 m² | C25: =5/6 -> 0.8333333333 | E25: De site is kleiner dan 500 m²
A26: < 1000 m² | C26: =C25+5/6 -> 1.666666667 | E26: De site is kleiner dan 1000 m²
A27: < 2000 m² | C27: =C26+5/6 -> 2.5 | E27: De site is kleiner dan 2000 m²
A28: < 5000 m² | C28: =C27+5/6 -> 3.333333333 | E28: De site is kleiner dan 5000 m²
A29: < 10.000 m² | C29: =C28+5/6 -> 4.166666667 | E29: De site is kleiner dan 10.000 m²
A30: > 10.000 m² | C30: =C29+5/6 -> 5 | E30: De site is groter dan 10.000 m²
A31: R06 - bebouwingsgraad
A32: kies
A33: circa 0 procent | E33: De site is niet bebouwd
A34: circa 25 procent | E34: De site is voor ongeveer 25 procent bebouwd
A35: circa 50 procent | E35: De site is voor ongeveer de helft bebouwd
A36: circa 75 procent | E36: De site is voor ongeveer 75 procent bebouwd
A37: circa 100 procent | E37: De site is volledig bebouwd
A38: de bebouwingsgraad van de site is niet bekend | E38: De bebouwingsgraad van de site is niet bekend
A39: R07 - aanwezigheid erfgoed
A40: kies
A41: Er is onroerend erfgoed aanwezig | E41: Op de site is er onroerend erfgoed aanwezig
A42: Er is geen onroerend erfgoed aanwezig | E42: Op de site is er geen onroerend erfgoed aanwezig
A43: het is niet bekend of er op de site onroerend erfgoed aanwezig is | E43: Het is niet bekend of er op de site onroerend erfgoed aanwezig is
A44: R08 - staat van de site
A45: kies
A46: de site is nieuw en niet verwaarloosd | E46: De site is nieuw en niet verwaarloosd
A47: de site is nieuw maar verwaarloosd | E47: De site is nieuw maar wel verwaarloosd
A48: de site is verouderd maar niet verwaarloosd | E48: De site is verouderd maar niet verwaarloosd
A49: de site is verouderd en verwaarloosd | E49: De site is verouderd en ook verwaarloosd
A50: het is niet bekend in welke mate de site verouderd en/of verwaarloosd is | E50: Het is niet bekend in welke mate de site verouderd en/of verwaarloosd is
A51: R09 - buffering
A52: kies | C52: 0
A53: ja, volledig | C53: 0 | E53: De site biedt voldoende ruimte om te bufferen
A54: ja, gedeeltelijk | C54: 2.5 | E54: De site biedt gedeeltelijke ruimte om te bufferen
A55: neen, geen buffering op eigen terrein mogelijk | C55: 5 | E55: De site biedt geen mogelijkheden om te bufferen
A56: het is niet bekend of de site mogelijkheden biedt om te bufferen | C56: x | E56: Het is niet bekend of de site mogelijkheden biedt om te bufferen
A57: R11 - inrichtingsplannen
A58: kies | C58: 0
A59: De site kan ongewijzigd blijven | C59: =IF(OR(INPUT!$D$23=$A$45,INPUT!$D$23=$A$47,INPUT!$D$23=$A$49),5,0) -> 5 | E59: =_R11[[#This Row],[R11 - inrichtingsplannen]] -> De site kan ongewijzigd blijven
A60: De site moet opgefrist worden | C60: =IF(OR(INPUT!$D$23=$A$45,INPUT!$D$23=$A$47,INPUT!$D$23=$A$49),2.5,0) -> 2.5 | E60: =_R11[[#This Row],[R11 - inrichtingsplannen]] -> De site moet opgefrist worden
A61: De site moet volledig worden vernieuwd | C61: =IF(OR(INPUT!$D$23=$A$45,INPUT!$D$23=$A$47,INPUT!$D$23=$A$49),0,5) -> 0 | E61: =_R11[[#This Row],[R11 - inrichtingsplannen]] -> De site moet volledig worden vernieuwd
A62: Het is niet bekend of er vernieuwingswerken op de site nodig zijn | C62: x | E62: =_R11[[#This Row],[R11 - inrichtingsplannen]] -> Het is niet bekend of er vernieuwingswerken op de site nodig zijn
A63: R12 - opslag
A64: kies | C64: 0
A65: Opslag in open lucht kan zonder bijkomende randvoorwaarden | C65: 0 | E65: =_R12[[#This Row],[R12 - opslag]] -> Opslag in open lucht kan zonder bijkomende randvoorwaarden
A66: Opslag in open lucht is mits bepaalde randvoorwaarden mogelijk | C66: 1 | E66: =_R12[[#This Row],[R12 - opslag]] -> Opslag in open lucht is mits bepaalde randvoorwaarden mogelijk
A67: Opslag in open lucht is onder geen beding mogelijk | C67: 5 | E67: =_R12[[#This Row],[R12 - opslag]] -> Opslag in open lucht is onder geen beding mogelijk
A68: het is niet bekend of opslag in open lucht mogelijk is | C68: x | E68: =_R12[[#This Row],[R12 - opslag]] -> het is niet bekend of opslag in open lucht mogelijk is
A69: R13 - behoud erfgoed
A70: kies | C70: 0
A71: Het erfgoed kan mits eenvoudige ingrepen behouden worden | C71: 0 | E71: =_R13[[#This Row],[R13 - behoud erfgoed]] -> Het erfgoed kan mits eenvoudige ingrepen behouden worden
A72: Het erfgoed moet wellicht worden aangetast om bedrijfsactiviteiten mogelijk te maken | C72: 2.5 | E72: =_R13[[#This Row],[R13 - behoud erfgoed]] -> Het erfgoed moet wellicht worden aangetast om bedrijfsactiviteiten mogelijk te maken
A73: Het erfgoed moet hoogst waarschijnlijk verdwijnen om bedrijfsactiviteiten mogelijk te maken | C73: 5 | E73: =_R13[[#This Row],[R13 - behoud erfgoed]] -> Het erfgoed moet hoogst waarschijnlijk verdwijnen om bedrijfsactiviteiten mogelijk te maken
A74: Het is niet bekend in welke mate het onroerend erfgoed kan worden behouden | C74: x
A75: R14 - druk
A76: kies
A77: Vanuit de omgeving is er een grote druk door andere functies dan bedrijvigheid | C77: 5 | E77: =_R14[[#This Row],[R14 - druk]] -> Vanuit de omgeving is er een grote druk door andere functies dan bedrijvigheid
A78: Vanuit de omgeving is er een beperkte druk door andere functies dan bedrijvigheid | C78: 2.5 | E78: =_R14[[#This Row],[R14 - druk]] -> Vanuit de omgeving is er een beperkte druk door andere functies dan bedrijvigheid
A79: Vanuit de omgeving is er geen druk door andere functies dan bedrijvigheid | C79: 0 | E79: =_R14[[#This Row],[R14 - druk]] -> Vanuit de omgeving is er geen druk door andere functies dan bedrijvigheid
A80: Het is niet bekend of er vanuit de omgeving druk is door andere functies dan bedrijvigheid | C80: x | E80: =_R14[[#This Row],[R14 - druk]] -> Het is niet bekend of er vanuit de omgeving druk is door andere functies dan bedrijvigheid
A81: S01 - precedenten
A82: kies | C82: 0
A83: In de buurt zijn al één of meerdere bedrijven van eenzelfde omvang als de site | C83: 0 | E83: =_S01[[#This Row],[S01 - precedenten]] -> In de buurt zijn al één of meerdere bedrijven van eenzelfde omvang als de site
A84: In de buurt zijn al meerdere bedrijven gevestigd, weliswaar kleiner dan de site | C84: 2.5 | E84: =_S01[[#This Row],[S01 - precedenten]] -> In de buurt zijn al meerdere bedrijven gevestigd, weliswaar kleiner dan de site
A85: In de buurt zijn er op vandaag geen bedrijven gevestigd | C85: 5 | E85: =_S01[[#This Row],[S01 - precedenten]] -> In de buurt zijn er op vandaag geen bedrijven gevestigd
A86: S02 - klachten
A87: kies | C87: 0
A88: In de buurt is een actiecomité actief dat zich kant tegen reeds gevestigde bedrijven | C88: 5 | E88: =_S02[[#This Row],[S02 - klachten]] -> In de buurt is een actiecomité actief dat zich kant tegen reeds gevestigde bedrijven
A89: Omwonenden hebben eerder al een aantal klachten rond reeds gevestigde bedrijven geformuleerd | C89: 2.5 | E89: =_S02[[#This Row],[S02 - klachten]] -> Omwonenden hebben eerder al een aantal klachten rond reeds gevestigde bedrijven geformuleerd
A90: Omwonenden hebben tot vandaag weinig of nog geen klachten rond reeds gevestigde bedrijven geformuleerd | C90: 0 | E90: =_S02[[#This Row],[S02 - klachten]] -> Omwonenden hebben tot vandaag weinig of nog geen klachten rond reeds gevestigde bedrijven geformuleerd
A91: In de buurt zijn er op vandaag geen bedrijven gevestigd | C91: 0 | E91: =_S02[[#This Row],[S02 - klachten]] -> In de buurt zijn er op vandaag geen bedrijven gevestigd
A92: S03 - collectief gebruik
A93: kies | C93: 0
A94: In de buurt is er op vandaag hoge nood aan collectieve ruimte | C94: 0 | E94: =_S03[[#This Row],[S03 - collectief gebruik]] -> In de buurt is er op vandaag hoge nood aan collectieve ruimte
A95: De buurt kan bijkomende collectieve ruimte gebruiken | C95: 0 | E95: =_S03[[#This Row],[S03 - collectief gebruik]] -> De buurt kan bijkomende collectieve ruimte gebruiken
A96: In de buurt is er op vandaag geen nood aan collectieve ruimte | C96: 0 | E96: =_S03[[#This Row],[S03 - collectief gebruik]] -> In de buurt is er op vandaag geen nood aan collectieve ruimte
A97: het is niet bekend of collectief gebruik mogelijk en bespreekbaar is | C97: x | E97: =_S03[[#This Row],[S03 - collectief gebruik]] -> het is niet bekend of collectief gebruik mogelijk en bespreekbaar is
A98: E01 - aantal bedrijven
A99: kies | C99: 0
A100: Sinds een aantal jaren is er een aanzienlijke vermindering van bedrijven in de kern merkbaar | C100: 5 | E100: =_E01[[#This Row],[E01 - aantal bedrijven]] -> Sinds een aantal jaren is er een aanzienlijke vermindering van bedrijven in de kern merkbaar
A101: Sinds een aantal jaren is er een beperkt vermindering van bedrijven in de kern merkbaar | C101: 2.5 | E101: =_E01[[#This Row],[E01 - aantal bedrijven]] -> Sinds een aantal jaren is er een beperkt vermindering van bedrijven in de kern merkbaar
A102: Het aantal bedrijven in de kern is al enkele jaren vrij stabiel gebleven | C102: 0 | E102: =_E01[[#This Row],[E01 - aantal bedrijven]] -> Het aantal bedrijven in de kern is al enkele jaren vrij stabiel gebleven
A103: Sinds een aantal jaren is er een groei in het aantal bedrijven in de kern merkbaar | C103: 0 | E103: =_E01[[#This Row],[E01 - aantal bedrijven]] -> Sinds een aantal jaren is er een groei in het aantal bedrijven in de kern merkbaar
A104: Het is niet bekend of er in de afgelopen jaren bedrijven in de kern zijn bijgekomen of weggegaan | C104: x | E104: =_E01[[#This Row],[E01 - aantal bedrijven]] -> Het is niet bekend of er in de afgelopen jaren bedrijven in de kern zijn bijgekomen of weggegaan
A105: E02 - aantal voorzieningen
A106: kies | C106: 0
A107: Sinds een aantal jaren is er een aanzienlijke vermindering van voorzieningen in de kern merkbaar | C107: 5 | E107: =_E02[[#This Row],[E02 - aantal voorzieningen]] -> Sinds een aantal jaren is er een aanzienlijke vermindering van voorzieningen in de kern merkbaar
A108: Sinds een aantal jaren is er een beperkt vermindering van voorzieningen in de kern merkbaar | C108: 2.5 | E108: =_E02[[#This Row],[E02 - aantal voorzieningen]] -> Sinds een aantal jaren is er een beperkt vermindering van voorzieningen in de kern merkbaar
A109: Het aantal voorzieningen in de kern is al enkele jaren vrij stabiel gebleven | C109: 0 | E109: =_E02[[#This Row],[E02 - aantal voorzieningen]] -> Het aantal voorzieningen in de kern is al enkele jaren vrij stabiel gebleven
A110: Sinds een aantal jaren is er een groei in het aantal voorzieningen in de kern merkbaar | C110: 0 | E110: =_E02[[#This Row],[E02 - aantal voorzieningen]] -> Sinds een aantal jaren is er een groei in het aantal voorzieningen in de kern merkbaar
A111: Het is niet bekend of er in de afgelopen jaren voorzieningen in de kern zijn bijgekomen of weggegaan | C111: x | E111: =_E02[[#This Row],[E02 - aantal voorzieningen]] -> Het is niet bekend of er in de afgelopen jaren voorzieningen in de kern zijn bijgekomen of weggegaan
A112: E03 - ruimte
A113: kies | C113: 0
A114: In de gemeente en omliggende regio is er een groot gebrek aan ruimte voor ambachtelijke bedrijven en kmo's | C114: 0 | E114: =_E03[[#This Row],[E03 - ruimte]] -> In de gemeente en omliggende regio is er een groot gebrek aan ruimte voor ambachtelijke bedrijven en kmo's
A115: In de gemeente is er een groot gebrek aan ruimte voor ambachtelijke bedrijven en kmo's | C115: 1 | E115: =_E03[[#This Row],[E03 - ruimte]] -> In de gemeente is er een groot gebrek aan ruimte voor ambachtelijke bedrijven en kmo's
A116: In de gemeente is er een beperkt gebrek aan ruimte voor ambachtelijke bedrijven en kmo's | C116: 2.5 | E116: =_E03[[#This Row],[E03 - ruimte]] -> In de gemeente is er een beperkt gebrek aan ruimte voor ambachtelijke bedrijven en kmo's
A117: In de gemeente is er geen gebrek aan ruimte voor ambachtelijke bedrijven en kmo's | C117: 5 | E117: =_E03[[#This Row],[E03 - ruimte]] -> In de gemeente is er geen gebrek aan ruimte voor ambachtelijke bedrijven en kmo's
A118: Het is niet bekend of er in de gemeente en/of de regio een gebrek is aan ruimte voor ambachtelijke bedrijven en kmo's | C118: x | E118: =_E03[[#This Row],[E03 - ruimte]] -> Het is niet bekend of er in de gemeente en/of de regio een gebrek is aan ruimte voor ambachtelijke bedrijven en kmo's
A119: E04 - profiel
A120: kies | C120: 0
A121: In de buurt van de site zijn er geen tekenen van verpaupering en stijgende werkloosheid | C121: 5 | E121: =_E04[[#This Row],[E04 - profiel]] -> In de buurt van de site zijn er geen tekenen van verpaupering en stijgende werkloosheid
A122: In de buurt van de site zijn tekenen van verpaupering en stijgende werkloosheid merkbaar | C122: 2.5 | E122: =_E04[[#This Row],[E04 - profiel]] -> In de buurt van de site zijn tekenen van verpaupering en stijgende werkloosheid merkbaar
A123: In de buurt is er al een sterke verpaupering en een bovengemiddelde werkloosheid aanwezig | C123: 0 | E123: =_E04[[#This Row],[E04 - profiel]] -> In de buurt is er al een sterke verpaupering en een bovengemiddelde werkloosheid aanwezig
A124: Er is geen informatie bekend rond de graad van verpaupering en werkloosheid in de buurt van de site | C124: x | E124: =_E04[[#This Row],[E04 - profiel]] -> Er is geen informatie bekend rond de graad van verpaupering en werkloosheid in de buurt van de site
A125: L01 - hindercontour stof
A126: kies | C126: 0
A127: De maximale hindercontour voor stof is nihil | C127: 0 | E127: =_L01[[#This Row],[L01 - hindercontour stof]] -> De maximale hindercontour voor stof is nihil
A128: De maximale hindercontour voor stof is minder dan 25 meter | C128: =5/3 -> 1.666666667 | E128: =_L01[[#This Row],[L01 - hindercontour stof]] -> De maximale hindercontour voor stof is minder dan 25 meter
A129: De maximale hindercontour voor stof is minder dan 50 meter | C129: =5/3*2 -> 3.333333333 | E129: =_L01[[#This Row],[L01 - hindercontour stof]] -> De maximale hindercontour voor stof is minder dan 50 meter
A130: De maximale hindercontour voor stof is meer dan 50 meter | C130: 5 | E130: =_L01[[#This Row],[L01 - hindercontour stof]] -> De maximale hindercontour voor stof is meer dan 50 meter
A131: De maximale hindercontour kan niet in kaart worden gebracht | C131: x | E131: =_L01[[#This Row],[L01 - hindercontour stof]] -> De maximale hindercontour kan niet in kaart worden gebracht
A132: L02 - hindercontour geur
A133: kies | C133: 0
A134: De maximale hindercontour voor geur is nihil | C134: 0 | E134: =_L02[[#This Row],[L02 - hindercontour geur]] -> De maximale hindercontour voor geur is nihil
A135: De maximale hindercontour voor geur is minder dan 25 meter | C135: =5/3 -> 1.666666667 | E135: =_L02[[#This Row],[L02 - hindercontour geur]] -> De maximale hindercontour voor geur is minder dan 25 meter
A136: De maximale hindercontour voor geur is minder dan 50 meter | C136: =5/3*2 -> 3.333333333 | E136: =_L02[[#This Row],[L02 - hindercontour geur]] -> De maximale hindercontour voor geur is minder dan 50 meter
A137: De maximale hindercontour voor geur is meer dan 50 meter | C137: 5 | E137: =_L02[[#This Row],[L02 - hindercontour geur]] -> De maximale hindercontour voor geur is meer dan 50 meter
A138: De maximale hindercontour kan niet in kaart worden gebracht | C138: x | E138: =_L02[[#This Row],[L02 - hindercontour geur]] -> De maximale hindercontour kan niet in kaart worden gebracht
A139: L03 - hindercontour licht
A140: kies | C140: 0
A141: De maximale hindercontour voor licht is nihil | C141: 0 | E141: =_L03[[#This Row],[L03 - hindercontour licht]] -> De maximale hindercontour voor licht is nihil
A142: De maximale hindercontour voor licht is minder dan 25 meter | C142: =5/3 -> 1.666666667 | E142: =_L03[[#This Row],[L03 - hindercontour licht]] -> De maximale hindercontour voor licht is minder dan 25 meter
A143: De maximale hindercontour voor licht is minder dan 50 meter | C143: =5/3*2 -> 3.333333333 | E143: =_L03[[#This Row],[L03 - hindercontour licht]] -> De maximale hindercontour voor licht is minder dan 50 meter
A144: De maximale hindercontour voor licht is meer dan 50 meter | C144: 5 | E144: =_L03[[#This Row],[L03 - hindercontour licht]] -> De maximale hindercontour voor licht is meer dan 50 meter
A145: De maximale hindercontour kan niet in kaart worden gebracht | C145: x | E145: =_L03[[#This Row],[L03 - hindercontour licht]] -> De maximale hindercontour kan niet in kaart worden gebracht
A146: L04 - hindercontour geluid
A147: kies | C147: 0
A148: De maximale hindercontour voor geluid is nihil | C148: 0 | E148: =_L04[[#This Row],[L04 - hindercontour geluid]] -> De maximale hindercontour voor geluid is nihil
A149: De maximale hindercontour voor geluid is minder dan 25 meter | C149: =5/3 -> 1.666666667 | E149: =_L04[[#This Row],[L04 - hindercontour geluid]] -> De maximale hindercontour voor geluid is minder dan 25 meter
A150: De maximale hindercontour voor geluid is minder dan 50 meter | C150: =5/3*2 -> 3.333333333 | E150: =_L04[[#This Row],[L04 - hindercontour geluid]] -> De maximale hindercontour voor geluid is minder dan 50 meter
A151: De maximale hindercontour voor geluid is meer dan 50 meter | C151: 5 | E151: =_L04[[#This Row],[L04 - hindercontour geluid]] -> De maximale hindercontour voor geluid is meer dan 50 meter
A152: De maximale hindercontour kan niet in kaart worden gebracht | C152: x | E152: =_L04[[#This Row],[L04 - hindercontour geluid]] -> De maximale hindercontour kan niet in kaart worden gebracht
A153: L05 - hindercontour trillingen
A154: kies | C154: 0
A155: De maximale hindercontour voor trillingen is nihil | C155: 0 | E155: =_L05[[#This Row],[L05 - hindercontour trillingen]] -> De maximale hindercontour voor trillingen is nihil
A156: De maximale hindercontour voor trillingen is minder dan 25 meter | C156: =5/3 -> 1.666666667 | E156: =_L05[[#This Row],[L05 - hindercontour trillingen]] -> De maximale hindercontour voor trillingen is minder dan 25 meter
A157: De maximale hindercontour voor trillingen is minder dan 50 meter | C157: =5/3*2 -> 3.333333333 | E157: =_L05[[#This Row],[L05 - hindercontour trillingen]] -> De maximale hindercontour voor trillingen is minder dan 50 meter
A158: De maximale hindercontour voor trillingen is meer dan 50 meter | C158: 5 | E158: =_L05[[#This Row],[L05 - hindercontour trillingen]] -> De maximale hindercontour voor trillingen is meer dan 50 meter
A159: De maximale hindercontour kan niet in kaart worden gebracht | C159: x | E159: =_L05[[#This Row],[L05 - hindercontour trillingen]] -> De maximale hindercontour kan niet in kaart worden gebracht
A160: M00 - openbaar vervoer
A161: kies | C161: 0
A162: op wandelafstand van een bushalte en een station | C162: 0 | E162: =CONCATENATE("De site ligt"," ",_M00[[#This Row],[M00 - openbaar vervoer]]) -> De site ligt op wandelafstand van een bushalte en een station
A163: op wandelafstand van een bushalte of een station | C163: 1 | E163: =CONCATENATE("De site ligt"," ",_M00[[#This Row],[M00 - openbaar vervoer]]) -> De site ligt op wandelafstand van een bushalte of een station
A164: niet op wandelafstand van een bushalte of een station | C164: 5 | E164: =CONCATENATE("De site ligt"," ",_M00[[#This Row],[M00 - openbaar vervoer]]) -> De site ligt niet op wandelafstand van een bushalte of een station
A165: M01 - wegennet
A166: kies | C166: 0
A167: aan het hogere wegennet | C167: 0 | E167: De site ligt langs het hogere wegennet
A168: op minder dan 0,5 km van het hogere wegennet | C168: =C171/4 -> 1.25 | E168: =CONCATENATE("De site ligt"," ",_M01[[#This Row],[M01 - wegennet]]) -> De site ligt op minder dan 0,5 km van het hogere wegennet
A169: op minder dan 1 km van het hogere wegennet | C169: =C171/4*2 -> 2.5 | E169: =CONCATENATE("De site ligt"," ",_M01[[#This Row],[M01 - wegennet]]) -> De site ligt op minder dan 1 km van het hogere wegennet
A170: op minder dan 5 km van het hogere wegennet | C170: =5/4*3 -> 3.75 | E170: =CONCATENATE("De site ligt"," ",_M01[[#This Row],[M01 - wegennet]]) -> De site ligt op minder dan 5 km van het hogere wegennet
A171: op méér dan 5 km van het hogere wegennet | C171: 5 | E171: =CONCATENATE("De site ligt"," ",_M01[[#This Row],[M01 - wegennet]]) -> De site ligt op méér dan 5 km van het hogere wegennet
A172: M02 - ontsluitingstraject
A173: kies | C173: 0
A174: goed | C174: 0 | E174: =CONCATENATE("De kwaliteit van het ontsluitingstraject is"," ",_M02[[#This Row],[M02 - ontsluitingstraject]]) -> De kwaliteit van het ontsluitingstraject is goed
A175: matig | C175: 2.5 | E175: =CONCATENATE("De kwaliteit van het ontsluitingstraject is"," ",_M02[[#This Row],[M02 - ontsluitingstraject]]) -> De kwaliteit van het ontsluitingstraject is matig
A176: slecht | C176: 5 | E176: =CONCATENATE("De kwaliteit van het ontsluitingstraject is"," ",_M02[[#This Row],[M02 - ontsluitingstraject]]) -> De kwaliteit van het ontsluitingstraject is slecht
A177: de kwaliteit van het ontsluitingstraject is niet bekend | C177: x | E177: De kwaliteit van het ontsluitingstraject is niet bekend
A178: M03 - vrachtverkeer
A179: kies | C179: 0
A180: De site is enkel bereikbaar met lichte vrachtauto's | C180: 0 | E180: =_M03[[#This Row],[M03 - vrachtverkeer]] -> De site is enkel bereikbaar met lichte vrachtauto's
A181: De site is bereikbaar met eendelige vrachtauto's | C181: 2.5 | E181: =_M03[[#This Row],[M03 - vrachtverkeer]] -> De site is bereikbaar met eendelige vrachtauto's
A182: De site is bereikbaar met tweedelige vrachtauto's (trekker en aanhanger) | C182: 5 | E182: =_M03[[#This Row],[M03 - vrachtverkeer]] -> De site is bereikbaar met tweedelige vrachtauto's (trekker en aanhanger)
A183: Met wel type vrachtauto's de site bereikbaar is is niet gekend | C183: x | E183: =_M03[[#This Row],[M03 - vrachtverkeer]] -> Met wel type vrachtauto's de site bereikbaar is is niet gekend
A184: M04 - aantal vrachtbewegingen
A185: kies | C185: 0
A186: geen vrachtbewegingen binnen de courante werkuren | C186: 5 | E186: In de buurt is er geen draagvlak voor vrachtbewegingen binnen de courante werkuren
A187: gemiddeld minder dan 2 vrachtbewegingen binnen de courante werkuren | C187: =5/3*2 -> 3.333333333 | E187: =CONCATENATE("In de buurt is er draagvlak voor"," ",_M04[[#This Row],[M04 - aantal vrachtbewegingen]]) -> In de buurt is er draagvlak voor gemiddeld minder dan 2 vrachtbewegingen binnen de courante werkuren
A188: gemiddeld minder dan 5 vrachtbewegingen binnen de courante werkuren | C188: =5/3 -> 1.666666667 | E188: =CONCATENATE("In de buurt is er draagvlak voor"," ",_M04[[#This Row],[M04 - aantal vrachtbewegingen]]) -> In de buurt is er draagvlak voor gemiddeld minder dan 5 vrachtbewegingen binnen de courante werkuren
A189: gemiddeld meer dan 5 vrachtbewegingen binnen de courante werkuren | C189: 0 | E189: =CONCATENATE("In de buurt is er draagvlak voor"," ",_M04[[#This Row],[M04 - aantal vrachtbewegingen]]) -> In de buurt is er draagvlak voor gemiddeld meer dan 5 vrachtbewegingen binnen de courante werkuren
A190: het draagvlak binnen de courante werkuren is niet bekend | C190: x | E190: Voor hoeveel vrachtbewegingen binnen de courante werkuren er in de buurt draagvlak is, is niet bekend
A191: M05 - aantal vrachtbewegingen
A192: kies | C192: 0
A193: geen vrachtbewegingen 's ochtends en 's avonds | C193: 5 | E193: In de buurt is er geen draagvlak voor vrachtbewegingen 's ochtends en 's avonds
A194: gemiddeld minder dan 2 vrachtbewegingen 's ochtends en 's avonds | C194: =5/3*2 -> 3.333333333 | E194: =CONCATENATE("In de buurt is er draagvlak voor"," ",_M05[[#This Row],[M05 - aantal vrachtbewegingen]]) -> In de buurt is er draagvlak voor gemiddeld minder dan 2 vrachtbewegingen 's ochtends en 's avonds
A195: gemiddeld minder dan 5 vrachtbewingen 's ochtends en 's avonds | C195: =5/3 -> 1.666666667 | E195: =CONCATENATE("In de buurt is er draagvlak voor"," ",_M05[[#This Row],[M05 - aantal vrachtbewegingen]]) -> In de buurt is er draagvlak voor gemiddeld minder dan 5 vrachtbewingen 's ochtends en 's avonds
A196: gemiddeld méér dan 5 vrachtbewegingen 's ochtends en 's avonds | C196: 0 | E196: =CONCATENATE("In de buurt is er draagvlak voor"," ",_M05[[#This Row],[M05 - aantal vrachtbewegingen]]) -> In de buurt is er draagvlak voor gemiddeld méér dan 5 vrachtbewegingen 's ochtends en 's avonds
A197: het draagvlak 's ochtends en 's avonds is niet bekend | C197: x | E197: Voor hoeveel vrachtbewegingen 's ochtends en 's avonds er in de buurt draagvlak is, is niet bekend
A198: M06 - aantal vrachtbewegingen
A199: kies | C199: 0
A200: geen vrachtbewegingen 's ochtends en 's avonds | C200: 5 | E200: In de buurt is er geen draagvlak voor vrachtbewegingen 's nachts
... 27 more rows

Sheet DATAVERWERKING (hidden)
B2: =INPUT!B15 -> RUIMTELIJK KENMERKEN | F2: score | G2: belang | H2: totaal
B3: =INPUT!B16 -> Zijn er kwetsbare functies binnen een straal van 200 meter rond de site? | C3: =INPUT!C16 -> belangrijk | D3: =INPUT!D16 -> kies | F3: =VLOOKUP(D3,Range_vlookup,3,FALSE) -> 0 | G3: =VLOOKUP(C3,Range_vlookup,3,FALSE) -> 1 | H3: =IF(F3="x","x",F3*G3) -> 0 | J3: =H16*(D16/G16)/D16 -> 0.5
B4: =INPUT!B17 -> Welke stedenbouwkundige bestemming heeft de site? | C4: =INPUT!C17 -> belangrijk | D4: =INPUT!D17 -> kies | F4: =VLOOKUP(D4,Range_vlookup,3,FALSE) -> 0 | G4: =VLOOKUP(C4,Range_vlookup,3,FALSE) -> 1 | H4: =IF(F4="x","x",F4*G4) -> 0
B5: =INPUT!B18 -> Ligt de site in een omgeving met een hoge of lage ruimtelijke dynamiek? | C5: =INPUT!C18 -> belangrijk | D5: =INPUT!D18 -> kies | F5: =VLOOKUP(D5,Range_vlookup,3,FALSE) -> 0 | G5: =VLOOKUP(C5,Range_vlookup,3,FALSE) -> 1 | H5: =IF(F5="x","x",F5*G5) -> 0
B6: =INPUT!B19 -> In welk type buurt ligt de site? | C6: =INPUT!C19 -> belangrijk | D6: =INPUT!D19 -> kies | F6: =VLOOKUP(D6,Range_vlookup,3,FALSE) -> 0 | G6: =VLOOKUP(C6,Range_vlookup,3,FALSE) -> 1 | H6: 0
B7: =INPUT!B20 -> Hoe groot is de site? | C7: =INPUT!C20 -> belangrijk | D7: =INPUT!D20 -> kies | F7: =VLOOKUP(D7,Range_vlookup,3,FALSE) -> 0 | G7: =VLOOKUP(C7,Range_vlookup,3,FALSE) -> 1 | H7: 0
B8: =INPUT!B21 -> Wat is de actuele graad van bebouwde oppervlakte op de site? | D8: =INPUT!D21 -> kies
B9: =INPUT!B22 -> Is er onroerend erfgoed op de site aanwezig? | D9: =INPUT!D22 -> kies
B10: =INPUT!B23 -> In welke staat is de site vandaag? | D10: =INPUT!D23 -> kies
B11: =INPUT!B24 -> Is er op de site voldoende ruimte om te bufferen? | C11: =INPUT!C24 -> belangrijk | D11: =INPUT!D24 -> kies | F11: =VLOOKUP(D11,Range_vlookup,3,FALSE) -> 0 | G11: =VLOOKUP(C11,Range_vlookup,3,FALSE) -> 1 | H11: 0
B12: =INPUT!B25 -> In welke mate kan de bestaande toestand behouden worden? | C12: =INPUT!C25 -> belangrijk | D12: =INPUT!D25 -> kies | F12: =VLOOKUP(D12,Range_vlookup,3,FALSE) -> 0 | G12: =VLOOKUP(C12,Range_vlookup,3,FALSE) -> 1 | H12: 0
B13: =INPUT!B26 -> Is de site zo georganiseerd dat er draagvlak kan zijn voor opslag in open lucht? | C13: =INPUT!C26 -> belangrijk | D13: =INPUT!D26 -> kies | F13: =VLOOKUP(D13,Range_vlookup,3,FALSE) -> 0 | G13: =VLOOKUP(C13,Range_vlookup,3,FALSE) -> 1 | H13: 0
B14: =INPUT!B27 -> Kan het aanwezige erfgoed op de site behouden worden om nieuwe activiteiten mogelijk te maken? | C14: =INPUT!C27 -> belangrijk | D14: =INPUT!D27 -> kies | F14: =VLOOKUP(D14,Range_vlookup,3,FALSE) -> 0 | G14: =VLOOKUP(C14,Range_vlookup,3,FALSE) -> 1 | H14: 0
B15: =INPUT!B28 -> Is er in de omgeving van de site een grote druk vanuit andere functies dan bedrijvigheid? | C15: =INPUT!C28 -> belangrijk | D15: =INPUT!D28 -> Vanuit de omgeving is er een grote druk door andere functies dan bedrijvigheid | F15: =VLOOKUP(D15,Range_vlookup,3,FALSE) -> 5 | G15: =VLOOKUP(C15,Range_vlookup,3,FALSE) -> 1 | H15: 5
D16: =IF(D9=LISTS!A41,10,9) -> 9 | F16: =SUM(F3:F15) -> 5 | G16: =SUM(G3:G15) -> 10 | H16: =SUM(H3:H15) -> 5
F17: schaal | G17: verdeling | H17: score
F18: 0 | G18: 20 | H18: =J3/5 -> 0.1
F19: 1 | G19: 20 | H19: 0.01
F20: 2 | G20: 20 | H20: =H23-H19-H18 -> 0.89
F21: 3 | G21: 20 | H21: 0
F22: 4 | G22: 20 | H22: 0
F23: 5 | G23: 100 | H23: 1
B25: =INPUT!B30 -> SOCIALE KENMERKEN
B26: =INPUT!B31 -> Zijn er in de buurt al bedrijven actief met eenzelfde schaal als de site? | C26: =INPUT!C31 -> belangrijk | D26: =INPUT!D31 -> kies | F26: =VLOOKUP(D26,Range_vlookup,3,FALSE) -> 0 | G26: =VLOOKUP(C26,Range_vlookup,3,FALSE) -> 1 | H26: =IF(F26="x","x",F26*G26) -> 0 | J26: =H29/G29 -> 0
B27: =INPUT!B32 -> Zijn er vanuit de buurt in het verleden reeds klachten gekomen rond bedrijvigheid? | C27: =INPUT!C32 -> belangrijk | D27: =INPUT!D32 -> kies | F27: =VLOOKUP(D27,Range_vlookup,3,FALSE) -> 0 | G27: =VLOOKUP(C27,Range_vlookup,3,FALSE) -> 1 | H27: 0
B28: =INPUT!B33 -> Is er in de buurt van de site nood aan bijkomende ruimte (vb. voor parkeren, spelen, …)? | C28: =INPUT!C33 -> belangrijk | D28: =INPUT!D33 -> kies | F28: =VLOOKUP(D28,Range_vlookup,3,FALSE) -> 0 | G28: =VLOOKUP(C28,Range_vlookup,3,FALSE) -> 1 | H28: 0
D29: =IF(D14=LISTS!A48,9,8) -> 8 | F29: =SUM(F26:F28) -> 0 | G29: =SUM(G26:G28) -> 3 | H29: =SUM(H26:H28) -> 0
F30: schaal | G30: verdeling | H30: score
F31: 0 | G31: 20 | H31: =J26/5 -> 0
F32: 1 | G32: 20 | H32: 0.01
F33: 2 | G33: 20 | H33: =H36-H32-H31 -> 0.99
F34: 3 | G34: 20 | H34: 0
F35: 4 | G35: 20 | H35: 0
F36: 5 | G36: 100 | H36: 1
B38: =INPUT!B35 -> ECONOMISCHE KENMERKEN
B39: =INPUT!B36 -> Is het aantal ambachtelijke bedrijven en kmo's in de kern de afgelopen jaren afgenomen? | C39: =INPUT!C36 -> belangrijk | D39: =INPUT!D36 -> kies | F39: =VLOOKUP(D39,Range_vlookup,3,FALSE) -> 0 | G39: =VLOOKUP(C39,Range_vlookup,3,FALSE) -> 1 | H39: =IF(F39="x","x",F39*G39) -> 0 | J39: =H43/G43 -> 0
B40: =INPUT!B37 -> Is het aantal commerciële diensten en voorzieningen in de kern de afgelopen jaren afgenomen? | C40: =INPUT!C37 -> belangrijk | D40: =INPUT!D37 -> kies | F40: =VLOOKUP(D40,Range_vlookup,3,FALSE) -> 0 | G40: =VLOOKUP(C40,Range_vlookup,3,FALSE) -> 1 | H40: =IF(F40="x","x",F40*G40) -> 0
B41: =INPUT!B38 -> Is er in de gemeente nood aan bijkomende ruimte voor ambachtelijke bedrijven of kmo's? | C41: =INPUT!C38 -> belangrijk | D41: =INPUT!D38 -> kies | F41: =VLOOKUP(D41,Range_vlookup,3,FALSE) -> 0 | G41: =VLOOKUP(C41,Range_vlookup,3,FALSE) -> 1 | H41: 0
B42: =INPUT!B39 -> Zijn er in de buurt tekenen van verpaupering en stijgende werkloosheid? | C42: =INPUT!C39 -> belangrijk | D42: =INPUT!D39 -> In de buurt is er al een sterke verpaupering en een bovengemiddelde werkloosheid aanwezig | F42: =VLOOKUP(D42,Range_vlookup,3,FALSE) -> 0 | G42: =VLOOKUP(C42,Range_vlookup,3,FALSE) -> 1 | H42: 0
F43: =SUM(F39:F42) -> 0 | G43: =SUM(G39:G42) -> 4 | H43: =SUM(H39:H42) -> 0
F44: schaal | G44: verdeling | H44: score
F45: 0 | G45: 20 | H45: =J39/5 -> 0
F46: 1 | G46: 20 | H46: 0.01
F47: 2 | G47: 20 | H47: =H50-H46-H45 -> 0.99
F48: 3 | G48: 20 | H48: 0
F49: 4 | G49: 20 | H49: 0
F50: 5 | G50: 100 | H50: 1
B53: =INPUT!B41 -> KENMERKEN LEEFMILIEU
B54: =INPUT!B42 -> Het groot mag de hindercontour zijn voor wat betreft stof | C54: =INPUT!C42 -> belangrijk | D54: =INPUT!D42 -> kies | F54: =VLOOKUP(D54,Range_vlookup,3,FALSE) -> 0 | G54: =VLOOKUP(C54,Range_vlookup,3,FALSE) -> 1 | H54: =IF(F54="x","x",F54*G54) -> 0 | J54: =H59/G59 -> 0
B55: =INPUT!B43 -> Het groot mag de hindercontour zijn voor wat betreft geur? | C55: =INPUT!C43 -> belangrijk | D55: =INPUT!D43 -> kies | F55: 0 | G55: 1 | H55: =IF(F55="x","x",F55*G55) -> 0
B56: =INPUT!B44 -> Het groot mag de hindercontour zijn voor wat betreft lichtvervuiling? | C56: =INPUT!C44 -> belangrijk | D56: =INPUT!D44 -> kies | F56: 0 | G56: 1 | H56: 0
B57: =INPUT!B45 -> Het groot mag de hindercontour zijn voor wat betreft geluid? | C57: =INPUT!C45 -> belangrijk | D57: =INPUT!D45 -> kies | F57: 0 | G57: 1 | H57: =IF(F57="x","x",F57*G57) -> 0
B58: =INPUT!B46 -> Het groot mag de hindercontour zijn voor wat betreft trillingen? | C58: =INPUT!C46 -> belangrijk | D58: =INPUT!D46 -> kies | F58: 0 | G58: 1 | H58: =IF(F58="x","x",F58*G58) -> 0
F59: =SUM(F54:F58) -> 0 | G59: =SUM(G54:G58) -> 5 | H59: =SUM(H54:H58) -> 0
F60: schaal | G60: verdeling | H60: score
F61: 0 | G61: 20 | H61: =J54/5 -> 0
F62: 1 | G62: 20 | H62: 0.01
F63: 2 | G63: 20 | H63: =H66-H62-H61 -> 0.99
F64: 3 | G64: 20 | H64: 0
F65: 4 | G65: 20 | H65: 0
F66: 5 | G66: 100 | H66: 1
B68: =INPUT!B48 -> MOBILITEITSKENMERKEN
B69: =INPUT!B49 -> Ligt de site op wandelafstand van openbaar vervoer? | C69: =INPUT!C49 -> belangrijk | D69: =INPUT!D49 -> op wandelafstand van een bushalte en een station | F69: =VLOOKUP(D69,Range_vlookup,3,FALSE) -> 0 | G69: =VLOOKUP(C69,Range_vlookup,3,FALSE) -> 1 | H69: =IF(F69="x","x",F69*G69) -> 0 | J69: =H77/G77 -> 0
B70: =INPUT!B50 -> Hoe ver ligt de site van het hogere wegennet? | C70: =INPUT!C50 -> belangrijk | D70: =INPUT!D50 -> kies | F70: =VLOOKUP(D70,Range_vlookup,3,FALSE) -> 0 | G70: =VLOOKUP(C70,Range_vlookup,3,FALSE) -> 1 | H70: =IF(F70="x","x",F70*G70) -> 0
B71: =INPUT!B51 -> Wat is de kwaliteit van het ontsluitingstraject? | C71: =INPUT!C51 -> belangrijk | D71: =INPUT!D51 -> kies | F71: =VLOOKUP(D71,Range_vlookup,3,FALSE) -> 0 | G71: =VLOOKUP(C71,Range_vlookup,3,FALSE) -> 1 | H71: 0
B72: =INPUT!B52 -> Hoeveel vrachtbewegingen zijn er voor de buurt haalbaar, binnen de courante werkuren? | C72: =INPUT!C52 -> belangrijk | D72: =INPUT!D52 -> kies | F72: =VLOOKUP(D72,Range_vlookup,3,FALSE) -> 0 | G72: =VLOOKUP(C72,Range_vlookup,3,FALSE) -> 1 | H72: =IF(F72="x","x",F72*G72) -> 0
B73: =INPUT!B53 -> Hoeveel vrachtbewegingen zijn er voor de buurt haalbaar, 's morgens en 's avonds (samengeteld)? | C73: =INPUT!C53 -> belangrijk | D73: =INPUT!D53 -> kies | F73: 0 | G73: 1 | H73: 0
B74: =INPUT!B54 -> Hoeveel vrachtbewegingen zijn er voor de buurt haalbaar, 's nachts? | C74: =INPUT!C54 -> belangrijk | D74: =INPUT!D54 -> kies | F74: 0 | G74: 1 | H74: 0
B75: =INPUT!B55 -> Is er op de site plaats (of kan er plaats gemaakt worden) om te laden en te lossen? | C75: =INPUT!C55 -> belangrijk | D75: =INPUT!D55 -> kies | F75: 0 | G75: 1 | H75: 0
B76: =INPUT!B56 -> Is er op de site plaats (of kan er plaats gemaakt worden) om te parkeren? | C76: =INPUT!C56 -> belangrijk | D76: =INPUT!D56 -> kies | F76: 0 | G76: 1 | H76: 0
F77: =SUM(F69:F76) -> 0 | G77: =SUM(G69:G76) -> 8 | H77: =SUM(H69:H76) -> 0
F78: schaal | G78: verdeling | H78: score
F79: 0 | G79: 20 | H79: =J69/5 -> 0
F80: 1 | G80: 20 | H80: 0.01
F81: 2 | G81: 20 | H81: =H84-H80-H79 -> 0.99
F82: 3 | G82: 20 | H82: 0
F83: 4 | G83: 20 | H83: 0
F84: 5 | G84: 100 | H84: 1

Sheet Sheet1
